bitfinex/quotes_SOLUSD_20250815
["timestamp","ask_amount","ask_price","bid_price","bid_amount"]
[1755265928466,0.06,191.28,191.21,64.09397738]
[1755265928467,29.49223409,191.27,191.21,64.09397738]
[1755265928812,0.06,191.28,191.26,23.59397738]
[1755265929105,0.06,191.28,191.27,23.59397738]
[1755265929287,0.06,191.28,191.26,64.09397738]
[1755265929590,0.06,191.28,191.26,69.32240381]
[1755265929974,0.06,191.28,191.27,23.59397738]
[1755265930184,0.06,191.28,191.26,69.32240381]
[1755265930503,0.06,191.28,191.26,64.09397738]
[1755265931205,0.06,191.28,191.26,69.32239648]
[1755265931879,0.73,191.28,191.26,40.5]
[1755265932202,0.67,191.27,191.24,23.59397738]
[1755265932400,0.67,191.26,191.24,40.48]
[1755265932572,0.06,191.28,191.24,40.48]
[1755265932771,0.06,191.28,191.24,64.07397738]
[1755265932994,0.67,191.27,191.15,0.15]
[1755265933195,23.59397738,191.2,191.16,40.48]
[1755265933405,24.26397738,191.2,191.16,40.48]
[1755265933578,23.59397738,191.19,191.14,23.59397738]
[1755265933778,5.23067266,191.18,191.13,23.59397738]
[1755265934096,24.24767469,191.22,191.16,23.59397738]
[1755265934401,24.26397738,191.23,191.16,23.59397738]
[1755265934602,23.59397738,191.25,191.2,23.59397738]
[1755265934810,23.59397738,191.25,191.16,26.0]
[1755265934811,0.67,191.26,191.22,23.59397738]
[1755265935104,23.59397738,191.24,191.19,40.48]
[1755265935274,0.65,191.23,191.19,40.48]
[1755265935478,24.24397738,191.22,191.19,40.48]
[1755265935692,30.1276816,191.21,191.19,40.48]
[1755265935876,24.24397738,191.2,191.16,40.48]
[1755265936380,0.65,191.23,191.17,23.59397738]
[1755265936604,0.65359477,191.25,191.21,23.59397738]
[1755265936912,0.65359477,191.25,191.2,0.03]
[1755265936913,0.65,191.24,191.2,40.51]
[1755265937415,23.59397738,191.22,191.2,40.51]
[1755265937590,0.65366312,191.23,191.2,40.51]
[1755265937790,1.30366312,191.23,191.2,0.03]
[1755265938126,0.65,191.22,191.2,0.03]
[1755265938295,24.24397738,191.25,191.2,0.03]
[1755265938495,23.59397738,191.23,191.2,0.03]
[1755265938908,23.59397738,191.21,191.2,0.03]
[1755265939404,24.24397738,191.21,191.2,0.03]
[1755265939826,29.47382937,191.21,191.2,0.03]
[1755265940296,44.58004494,191.21,191.2,0.03]
[1755265940624,24.24397738,191.21,191.2,0.03]
[1755265940794,0.65,191.21,191.2,0.03]
[1755265941227,0.65369731,191.22,191.2,0.03]
[1755265941397,24.89760632,191.24,191.2,0.03]
[1755265941597,1.30362894,191.24,191.2,0.03]
[1755265941803,1.30362894,191.24,191.2,28.85397038]
[1755265941804,0.65362894,191.24,191.2,28.85397038]
[1755265942222,0.65362894,191.24,191.2,5.259993]
[1755265942529,0.65,191.27,191.22,23.59397738]
[1755265943395,0.65356059,191.26,191.22,23.59397738]
[1755265943592,0.65,191.26,191.21,23.59397738]
[1755265943832,24.89757215,191.25,191.2,0.03]
[1755265944022,0.65,191.24,191.2,0.03]
[1755265944410,0.65,191.23,191.2,0.03]
[1755265944805,1.30366312,191.23,191.2,0.03]
[1755265945004,0.65,191.22,191.2,0.03]
[1755265945214,24.24770887,191.21,191.2,0.03]
[1755265945506,1.30373149,191.21,191.2,0.03]
[1755265945732,23.59397738,191.23,191.2,0.03]
[1755265945934,0.65369731,191.22,191.2,0.03]
[1755265946122,1.30369731,191.22,191.2,0.03]
[1755265946315,131.9,191.25,191.21,23.59397738]
[1755265946546,15.16621557,191.28,191.23,23.59397738]
[1755265946747,23.59397738,191.26,191.2,90.06397738]
[1755265947040,23.59397738,191.24,191.2,40.47]
[1755265947331,24.24397738,191.24,191.2,40.47]
[1755265947542,1.30352642,191.27,191.2,64.06397738]
[1755265947713,0.65352642,191.27,191.24,23.59397738]
[1755265947919,0.65352642,191.27,191.22,28.82329837]
[1755265948122,23.59397738,191.24,191.21,26.0]
[1755265948444,0.65,191.24,191.2,0.03]
[1755265948612,0.65,191.23,191.2,0.03]
[1755265949047,0.65359477,191.25,191.2,28.85399316]
[1755265949220,0.65,191.27,191.22,23.59397738]
[1755265949548,24.89753797,191.26,191.2,5.26001578]
[1755265949842,23.59397738,191.24,191.2,0.03]
[1755265950010,0.65362894,191.24,191.2,0.03]
[1755265950338,23.59397738,191.22,191.2,0.03]
[1755265950636,24.24767469,191.22,191.2,0.03]
[1755265950841,24.24397738,191.24,191.2,0.03]
[1755265951136,0.65366312,191.23,191.2,0.03]
[1755265951741,1.30366312,191.23,191.2,0.03]
[1755265951922,0.65,191.22,191.2,0.03]
[1755265953025,0.65,191.25,191.21,23.59397738]
[1755265953242,24.24397738,191.25,191.2,0.03]
[1755265953548,0.65,191.24,191.2,0.03]
[1755265953715,24.8975038,191.27,191.21,23.59397738]
[1755265953918,23.59397738,191.25,191.2,0.03]
[1755265954149,24.24757215,191.25,191.2,0.03]
[1755265954308,0.65,191.24,191.2,0.03]
[1755265954640,0.65366312,191.23,191.2,0.03]
[1755265954846,1.30366312,191.23,191.2,0.03]
[1755265955135,24.24397738,191.22,191.2,0.03]
[1755265955437,0.65,191.22,191.2,0.03]
[1755265955639,24.24397738,191.21,191.2,0.03]
[1755265955840,0.65,191.21,191.2,0.03]
[1755265956050,0.65359477,191.25,191.2,23.62397738]
[1755265956420,23.59397738,191.21,191.2,0.03]
[1755265956614,0.65366312,191.23,191.2,0.03]
[1755265956840,24.2476405,191.23,191.2,0.03]
[1755265957139,0.65,191.21,191.2,0.03]
[1755265957508,24.8976405,191.23,191.2,0.03]
[1755265957773,0.65,191.21,191.2,0.03]
[1755265958412,28.82333509,191.23,191.2,0.03]
[1755265958606,16.28252399,191.22,191.2,0.03]
[1755265958810,16.93252399,191.22,191.2,0.03]
[1755265959449,0.65,191.21,191.2,0.03]
[1755265959654,9.95094358,191.21,191.16,0.03]
[1755265959860,16.28252399,191.17,191.16,0.03]
[1755265960160,16.28252399,191.17,191.15,0.03]
[1755265960464,17.58642648,191.16,191.15,0.03]
[1755265960642,43.38777299,191.16,191.15,0.03]
[1755265960837,39.97192479,191.16,191.15,0.03]
[1755265961524,48.61714284,191.16,191.15,0.03]
[1755265961731,45.20314471,191.16,191.15,0.03]
[1755265962035,48.61708715,191.16,191.15,0.03]
[1755265962226,45.20314471,191.16,191.15,0.03]
[1755265962657,48.61535212,191.16,191.15,0.03]
[1755265963745,25.05354539,191.16,191.15,0.03]
[1755265963946,48.61535212,191.16,191.15,0.03]
[1755265964153,45.20314471,191.16,191.15,0.03]
[1755265964462,75.20314471,191.16,191.15,0.03]
[1755265964759,78.61244722,191.16,191.15,0.03]
[1755265965266,75.20314471,191.16,191.15,0.03]
[1755265967370,51.64133798,191.16,191.15,0.03]
[1755265967539,75.20314471,191.16,191.15,0.03]
[1755265968055,51.64133798,191.16,191.15,0.03]
[1755265968350,115.58314471,191.16,191.15,0.03]
[1755265968565,43.89951589,191.15,191.12,0.03]
[1755265968872,43.89951589,191.15,191.01,4.68489729]
[1755265968873,38.6680223,191.13,191.01,4.68489729]
[1755265969048,38.6680223,191.09,191.01,4.68489729]
[1755265969252,15.10621557,191.08,191.01,4.68489729]
[1755265969441,79.70223279,191.07,191.01,4.68489729]
[1755265969646,80.39223279,191.07,191.01,4.68489729]
[1755265970470,64.59601722,191.07,191.01,4.68489729]
[1755265970664,100.51970121,191.07,191.01,4.68489729]
[1755265970975,119.02436374,191.07,191.01,4.68489729]
[1755265971178,118.37015325,191.07,191.01,4.68489729]
[1755265971685,23.56180673,191.02,191.01,4.68489729]
[1755265971970,24.21618847,191.02,191.01,4.68489729]
[1755265972153,40.38,191.03,191.01,4.68489729]
[1755265972480,63.94180673,191.05,191.01,4.68489729]
[1755265972656,0.65431323,191.04,191.01,4.68489729]
[1755265972859,24.21611996,191.04,191.01,4.68489729]
[1755265973376,0.65427898,191.05,191.01,9.92016324]
[1755265973574,51.63623193,191.15,191.04,23.56180673]
[1755265973575,0.65403934,191.12,191.04,23.56180673]
[1755265973877,0.65403934,191.12,191.01,35.92016324]
[1755265973878,0.65397091,191.14,191.06,26.0]
[1755265974085,0.65397091,191.14,191.09,23.56180673]
[1755265974775,0.65397091,191.14,191.09,28.79478618]
[1755265975164,0.65400512,191.13,191.09,28.79478618]
[1755265975884,0.65390249,191.16,191.12,23.56180673]
[1755265976190,0.65390249,191.16,191.11,23.56180673]
[1755265976358,23.56180673,191.15,191.09,28.79478618]
[1755265976560,0.65397091,191.14,191.09,28.79478618]
[1755265976771,0.65397091,191.14,191.1,23.56180673]
[1755265977461,0.65393669,191.15,191.1,23.56180673]
[1755265977853,24.90574342,191.15,191.1,23.56180673]
[1755265978277,1.34393669,191.15,191.1,23.56180673]
[1755265978492,0.69,191.14,191.07,5.23348508]
[1755265978655,24.21581185,191.13,191.07,28.79529181]
[1755265978862,0.65400512,191.13,191.09,23.56180673]
[1755265979070,0.65400512,191.13,191.07,5.23348508]
[1755265979270,0.65400512,191.13,191.09,23.56180673]
[1755265980062,5.88611733,191.13,191.09,23.56180673]
[1755265980260,5.88611733,191.13,191.11,23.56180673]
[1755265980261,0.65400512,191.13,191.11,23.56180673]
[1755265980489,0.06,191.18,191.15,26.0]
[1755265980659,0.06,191.18,191.17,28.792753]
[1755265980862,0.06,191.28,191.25,26.0]
[1755265981061,0.06,191.28,191.27,23.56180673]
[1755265981379,0.06,191.28,191.24,40.34]
[1755265981593,0.06,191.28,191.25,23.56180673]
[1755265981889,0.06,191.28,191.27,23.56180673]
[1755265982255,0.06,191.28,191.2,26.0]
[1755265982462,0.06,191.28,191.24,23.56180673]
[1755265983587,0.06,191.28,191.24,49.56180673]
[1755265983780,0.69,191.27,191.22,23.56180673]
[1755265983971,0.65356059,191.26,191.21,23.56180673]
[1755265984162,0.65356059,191.26,191.21,49.56180673]
[1755265984366,0.71349226,191.28,191.23,23.56180673]
[1755265984565,0.06,191.28,191.27,23.56180673]
[1755265985069,0.75,191.28,191.21,26.0]
[1755265985382,23.56180673,191.26,191.21,26.0]
[1755265985575,0.65359477,191.25,191.21,26.0]
[1755265985764,24.9054015,191.25,191.19,23.56180673]
[1755265986196,1.34359477,191.25,191.17,23.56180673]
[1755265986390,0.71349226,191.28,191.22,23.56180673]
[1755265986698,0.06,191.28,191.25,23.56180673]
[1755265986995,24.90533315,191.27,191.21,23.56180673]
[1755265987196,23.56180673,191.26,191.2,49.59180673]
[1755265987367,23.56180673,191.24,191.2,0.03]
[1755265987566,23.56180673,191.22,191.2,0.03]
[1755265987802,24.25180673,191.22,191.2,0.03]
[1755265987995,24.21553822,191.21,191.2,0.03]
[1755265988290,24.90553822,191.21,191.2,0.03]
[1755265988488,0.65373149,191.21,191.2,0.03]
[1755265988798,5.91985199,191.21,191.2,0.03]
[1755265988966,0.65373149,191.21,191.2,0.03]
[1755265989184,0.65359477,191.25,191.2,23.59180673]
[1755265989380,0.71349226,191.28,191.24,23.56180673]
[1755265989699,0.06,191.28,191.23,26.0]
[1755265990000,0.06,191.28,191.27,23.56180673]
[1755265990404,0.06,191.28,191.27,49.56180673]
[1755265990581,0.06,191.28,191.27,26.0]
[1755265990776,0.06,191.28,191.27,49.56180673]
[1755265991178,0.06,191.28,191.27,44.56180673]
[1755265992001,0.06,191.28,191.25,23.56180673]
[1755265992201,0.06,191.28,191.26,23.56180673]
[1755265992402,0.06,191.28,191.27,23.56180673]
[1755265993206,0.06,191.28,191.27,49.56180673]
[1755265993514,0.06,191.28,191.27,28.79001815]
[1755265995590,0.06,191.28,191.27,5.22821142]
[1755265995786,0.06,191.28,191.27,28.79001815]
[1755265996405,0.06,191.28,191.27,5.22821142]
[1755265996710,0.06,191.28,191.27,28.79001815]
[1755265997384,0.06,191.28,191.26,40.26]
[1755265997579,0.06,191.28,191.2,13.10507985]
[1755265997580,24.25180673,191.27,191.2,0.03]
[1755265997814,23.56180673,191.24,191.2,0.03]
[1755265998185,0.69,191.23,191.2,0.03]
[1755265998546,23.56180673,191.24,191.2,0.03]
[1755265998687,23.56180673,191.21,191.2,0.03]
[1755265999013,24.25180673,191.21,191.2,0.03]
[1755265999186,44.58787429,191.21,191.2,0.03]
[1755265999608,0.69,191.21,191.2,0.03]
[1755265999791,0.65362894,191.24,191.2,23.59180673]
[1755265999991,1.34362894,191.24,191.2,0.03]
[1755266000204,23.56180673,191.21,191.2,0.03]
[1755266000409,15.75994706,191.21,191.2,0.03]
[1755266000715,40.01175379,191.21,191.2,0.03]
[1755266001295,45.24160578,191.21,191.2,0.03]
[1755266002112,15.10621557,191.2,191.18,0.03]
[1755266002303,24.21560661,191.19,191.18,0.03]
[1755266002509,39.32182218,191.19,191.18,0.03]
[1755266002692,40.01182218,191.19,191.18,0.03]
[1755266003300,45.24222125,191.19,191.18,0.03]
[1755266004000,75.24222125,191.19,191.18,0.03]
[1755266004209,51.68041452,191.19,191.18,0.03]
[1755266004389,75.24222125,191.19,191.18,0.03]
[1755266005086,78.63827112,191.19,191.18,0.03]
[1755266005405,78.63827112,191.19,191.16,0.03]
[1755266005406,15.10621557,191.18,191.16,0.03]
[1755266005611,69.32189058,191.17,191.11,0.03]
[1755266005788,23.56180673,191.14,191.11,0.03]
[1755266005988,0.65400512,191.13,191.11,0.03]
[1755266006193,23.56180673,191.14,191.11,0.03]
[1755266006500,0.65397091,191.14,191.11,0.03]
[1755266008190,24.25180673,191.13,191.11,0.03]
[1755266008397,39.32206164,191.12,191.11,0.03]
[1755266008596,40.01206164,191.12,191.11,0.03]
[1755266009119,40.01206164,191.12,191.09,0.03]
[1755266009298,38.6680223,191.1,191.09,0.03]
[1755266009493,44.55499246,191.1,191.09,0.03]
[1755266009692,45.24499246,191.1,191.09,0.03]
[1755266010522,48.63761119,191.1,191.09,0.03]
[1755266010820,15.10621557,191.09,191.01,4.68489729]
[1755266011022,86.83355155,191.1,191.01,4.68489729]
[1755266011023,23.56180673,191.02,191.01,4.68489729]
[1755266011322,23.56180673,191.03,191.01,30.68489729]
[1755266011630,23.56180673,191.04,191.01,4.68489729]
[1755266011840,24.21615421,191.03,191.01,30.68489729]
[1755266012212,23.56180673,191.05,191.01,30.68489729]
[1755266012407,24.21611996,191.04,191.01,30.68489729]
[1755266012621,23.56180673,191.02,191.01,4.68489729]
[1755266013030,0.65438174,191.02,191.01,4.68489729]
[1755266013632,24.21618847,191.02,191.01,4.68489729]
[1755266014017,23.56180673,191.03,191.01,4.68489729]
[1755266014220,0.65438174,191.02,191.01,4.68489729]
[1755266014426,0.65424473,191.06,191.01,33.48191346]
[1755266014738,1.34424473,191.06,191.01,4.68489729]
[1755266014936,24.21605146,191.06,191.01,4.68489729]
[1755266015139,0.65421049,191.07,191.03,23.56180673]
[1755266015317,23.56180673,191.06,191.01,4.68489729]
[1755266015519,23.56180673,191.04,191.01,4.68489729]
[1755266015841,24.25180673,191.05,191.01,4.68489729]
[1755266016044,15.10621557,191.07,191.01,9.92012884]
[1755266016222,24.21605146,191.06,191.01,4.68489729]
[1755266016415,0.65424473,191.06,191.01,4.68489729]
[1755266016610,24.21605146,191.06,191.01,9.92019891]
[1755266016835,132.55424473,191.06,191.02,23.56180673]
[1755266017149,23.56180673,191.07,191.01,33.48200564]
[1755266017350,0.65424473,191.06,191.01,33.48200564]
[1755266017641,24.21605146,191.06,191.01,33.48200564]
[1755266017808,0.65424473,191.06,191.01,33.48200564]
[1755266018122,0.65424473,191.06,191.02,23.56180673]
[1755266018321,0.65421049,191.07,191.02,23.56180673]
[1755266018513,0.65421049,191.07,191.02,40.22]
[1755266018721,24.90601722,191.07,191.02,40.22]
[1755266018927,24.90601722,191.07,191.02,63.78180673]
[1755266019126,1.34421049,191.07,191.02,40.22]
[1755266019331,1.34421049,191.07,191.02,63.78180673]
[1755266019543,1.34421049,191.07,191.02,69.01679601]
[1755266019732,1.34421049,191.07,191.03,23.56180673]
[1755266019933,0.65421049,191.07,191.03,23.56180673]
[1755266020118,0.65424473,191.06,191.03,0.06]
[1755266020321,23.56180673,191.06,191.02,40.22]
[1755266020518,5.88765043,191.08,191.02,40.22]
[1755266020718,0.69,191.06,191.02,40.22]
[1755266020917,1.34424473,191.06,191.02,40.22]
[1755266021109,0.65424473,191.06,191.02,56.52996006]
[1755266021536,0.69,191.05,191.02,40.22]
[1755266021746,0.69,191.05,191.02,40.2]
[1755266021947,0.69,191.05,191.01,4.68489729]
[1755266021948,16.30996006,191.03,191.01,4.68489729]
[1755266022153,0.69,191.02,191.01,4.68489729]
[1755266022453,16.96430754,191.03,191.01,4.68489729]
[1755266022630,0.65434748,191.03,191.01,4.68489729]
[1755266023220,16.99996006,191.02,191.01,4.68489729]
[1755266023418,0.69,191.02,191.01,4.68489729]
[1755266023748,5.92505392,191.02,191.01,4.68489729]
[1755266024548,0.69,191.02,191.01,4.68489729]
[1755266025134,0.65434748,191.03,191.01,4.68489729]
[1755266025339,22.19917705,191.03,191.01,4.68489729]
[1755266025539,16.30996006,191.02,191.01,4.68489729]
[1755266025735,66.70300194,191.02,190.99,0.03]
[1755266025923,66.70300194,191.02,190.97,0.03]
[1755266025924,15.10621557,190.99,190.97,0.03]
[1755266026120,75.63246681,190.98,190.97,0.03]
[1755266026349,15.10621557,190.97,190.95,0.03]
[1755266026552,20.34631979,190.96,190.95,0.03]
[1755266026846,17.6345474,190.96,190.95,0.03]
[1755266027356,21.01408583,190.96,190.95,0.03]
[1755266027655,17.6345474,190.96,190.95,0.03]
[1755266027825,56.25135753,190.96,190.95,0.03]
[1755266028027,67.30746175,190.96,190.95,0.03]
[1755266028257,67.97746175,190.96,190.95,0.03]
[1755266028623,67.30746175,190.96,190.95,0.03]
[1755266029038,71.35599599,190.96,190.95,0.03]
[1755266031627,71.35599599,190.96,190.93,0.03]
[1755266031837,36.65342293,190.94,190.93,0.03]
[1755266032048,40.68661308,190.94,190.93,0.03]
[1755266032223,41.35661308,190.94,190.93,0.03]
[1755266032427,40.68661308,190.94,190.93,0.03]
[1755266033058,41.35661308,190.94,190.93,0.03]
[1755266033741,41.35661308,190.94,190.91,0.03]
[1755266034057,31.41617563,190.92,190.91,0.03]
[1755266034257,16.30996006,190.9,190.89,679.92424242]
[1755266034462,19.6884943,190.9,190.89,679.92424242]
[1755266035467,34.79470987,190.9,190.89,679.92424242]
[1755266035828,40.70305455,190.9,190.89,679.92424242]
[1755266036061,70.70305455,190.9,190.89,679.92424242]
[1755266036940,70.70305455,190.9,190.89,652.2657432]
[1755266036941,76.54729105,190.9,190.89,652.2657432]
[1755266037266,76.54729105,190.9,190.89,548.82754551]
[1755266037470,76.54729105,190.9,190.89,485.40516331]
[1755266037828,76.54729105,190.9,190.89,429.62545318]
[1755266038229,76.54729105,190.9,190.89,213.54185327]
[1755266038230,102.54729105,190.9,190.89,213.54185327]
[1755266038545,102.54729105,190.9,190.89,170.82250143]
[1755266038737,102.54729105,190.9,190.89,137.45728092]
[1755266038940,102.54729105,190.9,190.89,46.1877217]
[1755266039137,15.10621557,190.87,190.86,1e-08]
[1755266039451,105.59857136,190.87,190.86,1e-08]
[1755266039664,105.61367536,190.87,190.86,1e-08]
[1755266039861,110.85284338,190.87,190.86,1e-08]
[1755266040337,95.07662781,190.87,190.86,1e-08]
[1755266040534,95.73152381,190.87,190.86,1e-08]
[1755266040748,111.50773938,190.87,190.86,1e-08]
[1755266040944,110.85284338,190.87,190.86,1e-08]
[1755266041659,110.18284338,190.87,190.86,1e-08]
[1755266041860,110.85284338,190.87,190.86,1e-08]
[1755266042532,114.59862564,190.87,190.86,1e-08]
[1755266042732,15.10621557,190.83,190.76,0.50478635]
[1755266043031,26.0,190.84,190.76,0.50478635]
[1755266043032,16.30996006,190.77,190.76,0.50478635]
[1755266043253,19.67745979,190.77,190.76,0.50478635]
[1755266043449,4.02273902,190.77,190.76,1.18478635]
[1755266043631,20.33269908,190.77,190.76,0.50478635]
[1755266043839,4.02533601,190.77,190.76,1.18478635]
[1755266044176,55.91258,190.81,190.76,22.73672182]
[1755266044177,3.37009672,190.8,190.76,22.73672182]
[1755266044332,0.6550676,190.82,190.79,16.30996006]
[1755266044532,16.30996006,190.8,190.77,0.68]
[1755266044754,16.30996006,190.78,190.76,0.50478635]
[1755266044949,20.33668568,190.77,190.76,0.50478635]
[1755266045332,4.02672562,190.77,190.76,1.18478635]
[1755266046046,25.57860002,190.77,190.76,0.50478635]
[1755266046929,9.26863996,190.77,190.76,0.50478635]
[1755266047133,25.57860002,190.77,190.76,0.50478635]
[1755266048063,25.57860002,190.77,190.76,1e-08]
[1755266048064,71.35481559,190.77,190.76,1e-08]
[1755266048536,39.93863996,190.77,190.76,1e-08]
[1755266048869,30.0,190.77,190.76,16.98996007]
[1755266049182,5.24023901,190.84,190.76,5.92215657]
[1755266049390,4.02346066,190.83,190.76,1e-08]
[1755266049564,3.36842739,190.82,190.77,0.68]
[1755266049878,15.747618,190.88,190.81,16.30996006]
[1755266050055,5.2372473,190.94,190.87,16.30996006]
[1755266050255,4.02556552,190.93,190.88,16.98996006]
[1755266050456,3.37087532,190.92,190.89,0.68]
[1755266050656,3.37087532,190.91,190.82,58.48189287]
[1755266050970,4.0256684,190.9,190.83,0.68]
[1755266051161,3.37087532,190.89,190.83,0.68]
[1755266051357,16.30996006,190.87,190.83,0.68]
[1755266051578,16.30996006,190.85,190.8,0.68]
[1755266051756,4.02587427,190.84,190.8,0.68]
[1755266051962,5.24054082,190.82,190.8,0.68]
[1755266052285,5.24054082,190.82,190.77,16.30996006]
[1755266052286,19.68083538,190.81,190.77,0.68]
[1755266052468,19.68083538,190.81,190.76,1e-08]
[1755266052469,16.30996006,190.78,190.76,1e-08]
[1755266052666,4.02601158,190.8,190.76,1e-08]
[1755266052667,20.33607467,190.77,190.76,1e-08]
[1755266052869,21.00607467,190.77,190.76,1e-08]
[1755266053066,59.92233018,190.77,190.76,1e-08]
[1755266053260,76.23229024,190.77,190.76,1e-08]
[1755266053463,106.23229024,190.77,190.76,1e-08]
[1755266053668,88.59709089,190.77,190.76,1e-08]
[1755266053867,74.16087532,190.77,190.76,1e-08]
[1755266054186,120.50900523,190.77,190.76,1e-08]
[1755266054395,136.81896529,190.77,190.76,1e-08]
[1755266054599,136.81896529,190.77,190.61,7.13359645]
[1755266054600,15.10621557,190.76,190.62,0.68]
[1755266054897,16.30996006,190.7,190.64,0.68]
[1755266055058,4.0263895,190.69,190.64,0.68]
[1755266055258,4.0263895,190.69,190.61,7.13365033]
[1755266055259,3.37087532,190.68,190.65,0.67]
[1755266055480,4.02645826,190.67,190.61,7.13378972]
[1755266055670,0.65527364,190.76,190.66,0.67]
[1755266055880,3.37076993,190.75,190.66,0.67]
[1755266056059,3.37076993,190.74,190.67,26.0]
[1755266056262,3.3711876,190.75,190.73,16.30996006]
[1755266056464,1.8711876,190.81,190.74,16.97996006]
[1755266056669,5.23945542,190.86,190.74,16.97996006]
[1755266056670,0.65496463,190.85,190.8,16.30996006]
[1755266056871,16.30996006,190.81,190.68,18.35535976]
[1755266057072,0.71,190.84,190.68,5.2443885]
[1755266057073,16.30996006,190.78,190.68,5.2443885]
[1755266057280,16.30996006,190.73,190.63,5.24576404]
[1755266057466,16.30996006,190.7,190.6,5.24653852]
[1755266057668,16.30996006,190.68,190.56,2.73726875]
[1755266057890,41.25,190.7,190.57,5.24737272]
[1755266057891,16.30996006,190.65,190.57,5.24737272]
[1755266058079,0.6556861,190.64,190.53,4.47811701]
[1755266058278,0.65561732,190.66,190.62,16.30996006]
[1755266058602,5.90065102,190.66,190.57,26.0]
[1755266058801,5.90065102,190.66,190.56,26.0]
[1755266058802,5.90065102,190.66,190.54,13.12029578]
[1755266058977,5.90065102,190.66,190.58,5.24713933]
[1755266059180,0.65561732,190.66,190.64,16.30996006]
[1755266059396,0.65554856,190.68,190.65,16.30996006]
[1755266061194,24.38788769,190.67,190.61,1.88754526]
[1755266061401,24.33350501,190.66,190.61,1.88754526]
[1755266061604,0.65561732,190.66,190.61,1.88754526]
[1755266061793,0.71,190.65,190.61,1.88754526]
[1755266062106,5.24576404,190.63,190.61,1.88754526]
[1755266062403,0.6557549,190.62,190.61,1.88754526]
[1755266062602,1.3657549,190.62,190.61,1.88754526]
[1755266063111,0.6557549,190.62,190.61,1.88754526]
[1755266063474,5.90123104,190.64,190.61,1.88754526]
[1755266063884,0.6556861,190.64,190.61,1.88754526]
[1755266064099,0.65565171,190.65,190.63,23.67788769]
[1755266064320,28.92199537,190.7,190.61,1.88754526]
[1755266064535,23.67788769,190.65,190.61,1.88754526]
[1755266064837,0.6556861,190.64,190.61,1.88754526]
[1755266065200,24.33357379,190.64,190.61,1.88754526]
[1755266065431,23.67788769,190.62,190.61,1.88754526]
[1755266065796,0.71,190.67,190.61,1.88754526]
[1755266065996,0.65561732,190.66,190.62,23.67788769]
[1755266066235,0.65561732,190.66,190.63,23.67788769]
[1755266066393,0.65544544,190.71,190.65,23.67788769]
[1755266066596,0.71,190.74,190.66,26.0]
[1755266066597,0.65534235,190.74,190.66,26.0]
[1755266066893,0.65527364,190.76,190.72,23.67788769]
[1755266067097,0.65527364,190.76,190.74,23.67788769]
[1755266067393,0.6551706,190.79,190.7,26.0]
[1755266067596,0.71,190.78,190.71,23.67788769]
[1755266067828,0.65523929,190.77,190.75,23.67788769]
[1755266068028,0.65513626,190.8,190.76,23.67788769]
[1755266068220,0.65513626,190.8,190.7,5.24383848]
[1755266068601,23.67788769,190.78,190.7,5.24383848]
[1755266068803,0.6551706,190.79,190.7,5.24383848]
[1755266068804,0.65523929,190.77,190.73,23.67788769]
[1755266069240,0.65523929,190.77,190.7,31.24383848]
[1755266069407,0.71,190.77,190.73,23.67788769]
[1755266069726,23.67788769,190.74,190.62,5.24603924]
[1755266069919,23.67788769,190.71,190.65,23.67788769]
[1755266070121,0.65547981,190.7,190.62,31.24603924]
[1755266070426,0.65547981,190.7,190.65,23.67788769]
[1755266070739,0.65547981,190.7,190.62,5.24603924]
[1755266070891,23.67788769,190.67,190.61,1.88754526]
[1755266071094,0.65561732,190.66,190.61,25.56543295]
[1755266072244,5.24548887,190.64,190.61,1.88754526]
[1755266072560,0.6557205,190.63,190.61,1.88754526]
[1755266072712,0.6557549,190.62,190.61,1.88754526]
[1755266072920,1.3657549,190.62,190.61,1.88754526]
[1755266073119,0.6557549,190.62,190.61,1.88754526]
[1755266073322,1.3657549,190.62,190.61,1.88754526]
[1755266073948,25.04364259,190.62,190.61,1.88754526]
[1755266074256,9.99317246,190.62,190.61,1.88754526]
[1755266074542,30.28968183,190.62,190.61,1.88754526]
[1755266074741,33.67106015,190.62,190.61,1.88754526]
[1755266075108,9.99317246,190.62,190.61,1.88754526]